[Event "Masterklassen 2025"]
[Site "Uppsala, Sweden"]
[Date "2025.07.05"]
[Round "8.15"]
[White "Sergelenbaatar, Khaschuluu"]
[Black "Kingsley, Elias"]
[Result "1-0"]
[TimeControl "90 min for 40 move + 30 min with an increment of 30 sec starting move 1"]
[WhiteFideId "4920929"]
[BlackFideId "1775006"]
[WhiteElo "1996"]
[BlackElo "2072"]

1. e4 {[%clk 01:30:24]} {[%emt 00:00:18]} e6 {[%clk 01:30:45]} {[%emt
00:00:22]} 2. d4 {[%clk 01:30:28]} {[%emt 00:00:35]} d5 {[%clk 01:31:05]}
{[%emt 00:00:12]} 3. Nc3 {[%clk 01:30:47]} {[%emt 00:00:09]} Nf6 {[%clk
01:31:23]} {[%emt 00:00:13]} 4. e5 {[%clk 01:31:06]} {[%emt 00:00:11]} Nfd7
{[%clk 01:31:43]} {[%emt 00:00:10]} 5. f4 {[%clk 01:31:26]} {[%emt 00:00:10]}
c5 {[%clk 01:31:56]} {[%emt 00:00:18]} 6. Nf3 {[%clk 01:31:47]} {[%emt
00:00:07]} Nc6 {[%clk 01:32:03]} {[%emt 00:00:24]} 7. Be3 {[%clk 01:32:05]}
{[%emt 00:00:11]} Be7 {[%clk 01:28:32]} {[%emt 00:04:02]} 8. Qd2 {[%clk
01:24:32]} {[%emt 00:08:04]} a6 {[%clk 01:23:57]} {[%emt 00:05:05]} 9. Be2
{[%clk 01:07:08]} {[%emt 00:17:53]} b5 {[%clk 01:23:12]} {[%emt 00:01:15]} 10.
a3 {[%clk 01:07:34]} {[%emt 00:00:06]} Bb7 {[%clk 01:18:45]} {[%emt 00:04:55]}
11. O-O {[%clk 01:04:17]} {[%emt 00:03:47]} Rc8 {[%clk 01:09:39]} {[%emt
00:09:37]} 12. Nd1 {[%clk 00:52:46]} {[%emt 00:12:01]} f5 {[%clk 01:04:07]}
{[%emt 00:06:01]} 13. c3 {[%clk 00:48:16]} {[%emt 00:05:01]} Na5 {[%clk
00:53:58]} {[%emt 00:10:39]} 14. Rb1 {[%clk 00:43:26]} {[%emt 00:05:20]} Nc4
{[%clk 00:51:37]} {[%emt 00:02:51]} 15. Qd3 {[%clk 00:37:37]} {[%emt 00:06:18]}
a5 {[%clk 00:50:01]} {[%emt 00:02:05]} 16. Bc1 {[%clk 00:27:44]} {[%emt
00:10:24]} Ba6 {[%clk 00:38:08]} {[%emt 00:12:23]} 17. g4 {[%clk 00:22:33]}
{[%emt 00:05:42]} g6 {[%clk 00:26:29]} {[%emt 00:12:08]} 18. gxf5 {[%clk
00:22:40]} {[%emt 00:00:22]} gxf5 {[%clk 00:24:49]} {[%emt 00:02:12]} 19. Ng5
{[%clk 00:22:54]} {[%emt 00:00:15]} Bxg5 {[%clk 00:24:40]} {[%emt 00:00:39]} 20.
Bh5+ {[%clk 00:23:04]} {[%emt 00:00:21]} Kf8 {[%clk 00:23:23]} {[%emt
00:01:46]} 21. fxg5 {[%clk 00:23:17]} {[%emt 00:00:17]} Kg7 {[%clk 00:23:03]}
{[%emt 00:00:50]} 22. b3 {[%clk 00:21:23]} {[%emt 00:02:24]} Ncb6 {[%clk
00:22:33]} {[%emt 00:01:01]} 23. Kh1 {[%clk 00:18:27]} {[%emt 00:03:25]} Ra8
{[%clk 00:21:04]} {[%emt 00:01:59]} 24. b4 {[%clk 00:15:23]} {[%emt 00:03:35]}
axb4 {[%clk 00:20:01]} {[%emt 00:01:33]} 25. axb4 {[%clk 00:15:46]} {[%emt
00:00:07]} cxd4 {[%clk 00:19:49]} {[%emt 00:00:42]} 26. cxd4 {[%clk 00:15:13]}
{[%emt 00:01:02]} Nc4 {[%clk 00:19:58]} {[%emt 00:00:22]} 27. Nc3 {[%clk
00:12:35]} {[%emt 00:03:07]} Qb6 {[%clk 00:19:02]} {[%emt 00:01:26]} 28. Nxd5
{[%clk 00:11:32]} {[%emt 00:01:33]} Qc6 {[%clk 00:14:04]} {[%emt 00:05:28]} 29.
Bf3 {[%clk 00:09:22]} {[%emt 00:02:40]} exd5 {[%clk 00:13:52]} {[%emt
00:00:42]} 30. Qxf5 {[%clk 00:09:41]} {[%emt 00:00:12]} Raf8 {[%clk 00:13:00]}
{[%emt 00:01:21]} 31. Qh3 {[%clk 00:09:46]} {[%emt 00:00:25]} Ndb6 {[%clk
00:05:42]} {[%emt 00:07:49]} 32. e6 {[%emt 00:01:44]} h5 {[%clk 00:03:27]}
{[%emt 00:02:41]} 33. gxh6+ {[%clk 00:08:17]} {[%emt 00:00:49]} Kh7 {[%clk
00:03:36]} {[%emt 00:00:19]} 34. Bg4 {[%clk 00:06:22]} {[%emt 00:02:27]} Rhg8
{[%clk 00:02:37]} {[%emt 00:01:29]} 35. Qd3+ {[%clk 00:05:20]} {[%emt
00:01:32]} Kh8 {[%clk 00:03:00]} {[%emt 00:00:07]} 36. Rxf8 {[%clk 00:05:09]}
{[%emt 00:00:41]} Rxf8 {[%clk 00:03:26]} {[%emt 00:00:03]} 37. Qg6 {[%clk
00:05:27]} {[%emt 00:00:13]} Qc7 {[%clk 00:02:45]} {[%emt 00:01:10]} 38. Bg5
{[%clk 00:05:23]} {[%emt 00:00:35]} 1-0

[Event "Masterklassen 2025"]
[Site "Uppsala, Sweden"]
[Date "2025.07.05"]
[Round "8.16"]
[White "Lind, Jan-Olov"]
[Black "Darnell, Anton"]
[Result "1-0"]
[TimeControl "90 min for 40 move + 30 min with an increment of 30 sec starting move 1"]
[WhiteFideId "1701193"]
[BlackFideId "1720244"]
[WhiteElo "2057"]
[BlackElo "2007"]

1. e4 {[%clk 01:30:49]} {[%emt 00:00:09]} e5 {[%clk 01:30:44]} {[%emt
00:00:17]} 2. Nf3 {[%clk 01:31:05]} {[%emt 00:00:14]} Nc6 {[%clk 01:31:00]}
{[%emt 00:00:14]} 3. d4 {[%clk 01:31:21]} {[%emt 00:00:14]} exd4 {[%clk
01:31:11]} {[%emt 00:00:20]} 4. Bb5 {[%clk 01:31:38]} {[%emt 00:00:12]} a6
{[%clk 01:24:47]} {[%emt 00:06:53]} 5. Ba4 {[%clk 01:31:20]} {[%emt 00:00:50]}
f5 {[%clk 01:24:35]} {[%emt 00:00:42]} 6. exf5 {[%clk 01:18:23]} {[%emt
00:13:27]} Qe7+ {[%clk 01:24:27]} {[%emt 00:00:38]} 7. Kf1 {[%clk 01:16:32]}
{[%emt 00:02:20]} b5 {[%clk 01:19:42]} {[%emt 00:05:15]} 8. Bb3 {[%clk
01:16:09]} {[%emt 00:00:53]} Na5 {[%clk 01:07:30]} {[%emt 00:12:42]} 9. Bd5
{[%clk 01:04:22]} {[%emt 00:12:17]} c6 {[%clk 00:59:53]} {[%emt 00:08:07]} 10.
Bxg8 {[%clk 01:02:11]} {[%emt 00:02:40]} Rxg8 {[%clk 00:58:59]} {[%emt
00:01:25]} 11. Bg5 {[%clk 00:57:17]} {[%emt 00:05:25]} Qe4 {[%clk 00:49:15]}
{[%emt 00:10:13]} 12. Nbd2 {[%clk 00:57:34]} {[%emt 00:00:13]} Qxf5 {[%clk
00:36:21]} {[%emt 00:13:24]} 13. Qe2+ {[%clk 00:57:47]} {[%emt 00:00:17]} Qe6
{[%clk 00:34:23]} {[%emt 00:02:29]} 14. Re1 {[%clk 00:57:53]} {[%emt 00:00:23]}
Qxe2+ {[%clk 00:34:11]} {[%emt 00:00:42]} 15. Rxe2+ {[%clk 00:58:11]} {[%emt
00:00:12]} Kf7 {[%clk 00:34:33]} {[%emt 00:00:08]} 16. Ne5+ {[%clk 00:56:55]}
{[%emt 00:01:46]} Ke6 {[%clk 00:35:02]} {[%emt 00:00:02]} 17. Nxc6+ {[%clk
00:57:10]} {[%emt 00:00:15]} Kf5 {[%clk 00:35:18]} {[%emt 00:00:13]} 18. Re5+
{[%clk 00:57:30]} {[%emt 00:00:10]} Kg6 {[%clk 00:35:33]} {[%emt 00:00:16]} 19.
Nxa5 {[%clk 00:56:54]} {[%emt 00:01:06]} d6 {[%clk 00:35:45]} {[%emt 00:00:17]}
20. Re8 {[%clk 00:50:54]} {[%emt 00:06:30]} Kxg5 {[%clk 00:32:05]} {[%emt
00:04:11]} 21. Ne4+ {[%clk 00:42:16]} {[%emt 00:09:07]} Kg6 {[%clk 00:12:44]}
{[%emt 00:19:52]} 22. Nxd6 {[%clk 00:41:47]} {[%emt 00:00:58]} Bxd6 {[%clk
00:12:20]} {[%emt 00:00:54]} 23. Rxg8 {[%clk 00:42:08]} {[%emt 00:00:09]} Kf7
{[%clk 00:12:39]} {[%emt 00:00:11]} 24. Rh8 {[%clk 00:39:33]} {[%emt 00:03:05]}
Bf8 {[%clk 00:10:10]} {[%emt 00:02:59]} 25. Nc6 {[%clk 00:39:06]} {[%emt
00:00:57]} Be6 {[%clk 00:03:14]} {[%emt 00:07:26]} 26. b3 {[%clk 00:36:42]}
{[%emt 00:02:54]} h6 {[%clk 00:01:58]} {[%emt 00:01:46]} 27. Nxd4 {[%clk
00:32:43]} {[%emt 00:04:29]} Rd8 {[%clk 00:00:58]} {[%emt 00:01:30]} 28. Rxf8+
{[%clk 00:33:01]} {[%emt 00:00:12]} Rxf8 {[%clk 00:01:18]} {[%emt 00:00:11]} 29.
Nxe6 {[%clk 00:33:24]} {[%emt 00:00:07]} Kxe6 {[%clk 00:01:44]} {[%emt
00:00:04]} 30. Ke2 {[%clk 00:33:45]} {[%emt 00:00:09]} Rc8 {[%clk 00:01:51]}
{[%emt 00:00:23]} 31. Re1 {[%clk 00:33:30]} {[%emt 00:00:44]} Kf5 {[%clk
00:01:05]} {[%emt 00:01:16]} 32. Kd3 {[%clk 00:33:11]} {[%emt 00:00:48]} Rd8+
{[%clk 00:01:11]} {[%emt 00:00:25]} 33. Ke3 {[%clk 00:32:04]} {[%emt 00:01:37]}
Rc8 {[%clk 00:00:53]} {[%emt 00:00:49]} 34. Kd2 {[%clk 00:32:15]} {[%emt
00:00:17]} g5 {[%clk 00:00:58]} {[%emt 00:00:26]} 35. Re3 {[%clk 00:30:44]}
{[%emt 00:02:00]} g4 {[%clk 00:01:00]} {[%emt 00:00:29]} 36. Rc3 {[%clk
00:29:56]} {[%emt 00:01:19]} Rd8+ {[%clk 00:00:47]} {[%emt 00:00:43]} 37. Rd3
{[%clk 00:30:15]} {[%emt 00:00:10]} Rf8 {[%clk 00:00:50]} {[%emt 00:00:27]} 38.
f3 {[%clk 00:27:32]} {[%emt 00:03:13]} h5 {[%clk 00:00:40]} {[%emt 00:00:40]}
39. fxg4+ {[%clk 00:27:44]} {[%emt 00:00:18]} hxg4 {[%clk 00:01:08]} {[%emt
00:00:02]} 40. h3 {[%clk 00:27:42]} {[%emt 00:00:31]} Ke4 {[%clk 00:00:57]}
{[%emt 00:00:42]} 41. Re3+ {[%clk 00:27:19]} {[%emt 00:00:53]} Kd4 {[%clk
00:27:08]} {[%emt 00:04:20]} 42. c3+ {[%clk 00:57:26]} {[%emt 00:00:23]} Kd5
{[%clk 00:27:36]} 43. hxg4 {[%clk 00:56:47]} {[%emt 00:01:09]} Rf2+ {[%clk
00:27:48]} {[%emt 00:00:18]} 44. Re2 {[%clk 00:57:02]} {[%emt 00:00:16]} Rf4
{[%clk 00:28:09]} {[%emt 00:00:09]} 45. Ke3 {[%clk 00:56:31]} {[%emt 00:00:59]}
Rxg4 {[%clk 00:28:08]} {[%emt 00:00:31]} 46. Kf3 {[%clk 00:56:51]} {[%emt
00:00:11]} Rg7 {[%clk 00:28:18]} {[%emt 00:00:21]} 47. g4 {[%clk 00:57:05]}
{[%emt 00:00:16]} Rc7 {[%clk 00:27:53]} {[%emt 00:00:55]} 48. Re3 {[%clk
00:57:09]} {[%emt 00:00:25]} Rf7+ {[%clk 00:27:44]} {[%emt 00:00:40]} 49. Kg3
{[%clk 00:57:07]} {[%emt 00:00:32]} Rg7 {[%clk 00:27:41]} {[%emt 00:00:34]} 50.
Kf4 {[%clk 00:54:46]} {[%emt 00:02:50]} Rf7+ {[%clk 00:27:50]} {[%emt
00:00:21]} 51. Kg5 {[%clk 00:55:03]} {[%emt 00:00:13]} Rf2 {[%clk 00:28:01]}
{[%emt 00:00:19]} 52. a3 {[%clk 00:55:22]} {[%emt 00:00:11]} Ra2 {[%clk
00:27:49]} {[%emt 00:00:42]} 53. a4 {[%clk 00:51:16]} {[%emt 00:04:36]} bxa4
{[%clk 00:26:26]} {[%emt 00:01:54]} 54. bxa4 {[%clk 00:51:36]} {[%emt
00:00:10]} Rxa4 {[%clk 00:26:28]} {[%emt 00:00:27]} 55. Kf5 {[%clk 00:51:52]}
{[%emt 00:00:14]} Ra1 {[%clk 00:26:37]} {[%emt 00:00:21]} 56. g5 {[%clk
00:51:46]} {[%emt 00:00:36]} Rf1 {[%clk 00:26:30]} {[%emt 00:00:38]} 57. Kg6
{[%clk 00:52:05]} {[%emt 00:00:10]} a5 {[%clk 00:26:11]} {[%emt 00:00:49]} 58.
Kh7 {[%clk 00:51:48]} {[%emt 00:00:47]} Rh1+ {[%clk 00:25:50]} {[%emt
00:00:51]} 59. Kg7 {[%clk 00:52:05]} {[%emt 00:00:12]} a4 {[%clk 00:25:59]}
{[%emt 00:00:22]} 60. g6 {[%clk 00:52:22]} {[%emt 00:00:13]} a3 {[%clk
00:23:56]} {[%emt 00:02:34]} 61. c4+ {[%clk 00:52:20]} {[%emt 00:00:32]} Kxc4
{[%clk 00:24:14]} {[%emt 00:00:12]} 62. Rxa3 {[%clk 00:52:43]} {[%emt
00:00:07]} Kd4 {[%clk 00:24:28]} {[%emt 00:00:15]} 63. Rf3 {[%clk 00:53:00]}
{[%emt 00:00:13]} 1-0

[Event "Masterklassen 2025"]
[Site "Uppsala, Sweden"]
[Date "2025.07.06"]
[Round "9.2"]
[White "Crevatin, Leo"]
[Black "Eklund, Joel"]
[Result "1/2-1/2"]
[TimeControl "90 min for 40 move + 30 min with an increment of 30 sec starting move 1"]
[WhiteTitle "FM"]
[WhiteFideId "1726307"]
[BlackFideId "1705288"]
[WhiteElo "2248"]
[BlackElo "2194"]

1. d4 {[%clk 01:30:49]} {[%emt 00:00:10]} Nf6 {[%clk 01:30:30]} {[%emt
00:00:20]} 2. c4 {[%clk 01:30:37]} {[%emt 00:00:52]} e6 {[%clk 01:30:32]}
{[%emt 00:00:29]} 3. Nc3 {[%clk 01:30:25]} {[%emt 00:00:42]} d5 {[%clk
01:30:42]} {[%emt 00:00:19]} 4. cxd5 {[%clk 01:30:50]} {[%emt 00:00:06]} exd5
{[%clk 01:31:08]} {[%emt 00:00:04]} 5. Bg5 {[%clk 01:31:16]} {[%emt 00:00:04]}
Be7 {[%clk 01:31:29]} {[%emt 00:00:09]} 6. e3 {[%clk 01:31:40]} {[%emt
00:00:06]} c6 {[%clk 01:31:45]} {[%emt 00:00:13]} 7. Bd3 {[%clk 01:32:05]}
{[%emt 00:00:05]} Nbd7 {[%clk 01:32:04]} {[%emt 00:00:11]} 8. h3 {[%clk
01:32:24]} {[%emt 00:00:11]} h6 {[%clk 01:31:01]} {[%emt 00:01:33]} 9. Bf4
{[%clk 01:32:49]} {[%emt 00:00:06]} Nb6 {[%clk 01:29:23]} {[%emt 00:02:07]} 10.
Nf3 {[%clk 01:32:42]} {[%emt 00:00:36]} Bd6 {[%clk 01:26:37]} {[%emt 00:03:17]}
11. Ne5 {[%clk 01:30:54]} {[%emt 00:02:17]} Qe7 {[%clk 01:24:52]} {[%emt
00:02:17]} 12. Bg3 {[%clk 01:23:30]} {[%emt 00:07:53]} Nfd7 {[%clk 01:23:48]}
{[%emt 00:01:34]} 13. f4 {[%clk 01:22:53]} {[%emt 00:01:07]} Nxe5 {[%clk
01:08:01]} {[%emt 00:16:17]} 14. fxe5 {[%clk 01:21:13]} {[%emt 00:02:10]} Bc7
{[%clk 01:08:16]} {[%emt 00:00:15]} 15. a3 {[%clk 01:14:39]} {[%emt 00:07:05]}
Be6 {[%clk 01:04:47]} {[%emt 00:03:59]} 16. Qf3 {[%clk 01:10:00]} {[%emt
00:05:09]} O-O {[%clk 00:59:36]} {[%emt 00:05:40]} 17. O-O {[%clk 01:05:14]}
{[%emt 00:05:16]} f5 {[%clk 00:58:09]} {[%emt 00:01:57]} 18. Qh5 {[%clk
00:53:25]} {[%emt 00:12:17]} Qf7 {[%clk 00:57:45]} {[%emt 00:00:56]} 19. Qxf7+
{[%clk 00:47:35]} {[%emt 00:06:21]} Rxf7 {[%clk 00:57:49]} {[%emt 00:00:26]} 20.
Rae1 {[%clk 00:44:04]} {[%emt 00:03:59]} Nd7 {[%clk 00:51:54]} {[%emt
00:06:26]} 21. Ne2 {[%clk 00:39:55]} {[%emt 00:04:39]} g5 {[%clk 00:51:13]}
{[%emt 00:01:11]} 22. Rf3 {[%clk 00:36:44]} {[%emt 00:03:41]} c5 {[%clk
00:46:33]} {[%emt 00:05:10]} 23. Ref1 {[%clk 00:35:24]} {[%emt 00:01:51]} Raf8
{[%clk 00:46:13]} {[%emt 00:00:50]} 24. Be1 {[%clk 00:34:12]} {[%emt 00:01:42]}
Bb6 {[%clk 00:42:10]} {[%emt 00:04:33]} 25. Kh1 {[%clk 00:32:13]} {[%emt
00:02:28]} cxd4 {[%clk 00:33:15]} {[%emt 00:09:25]} 26. Nxd4 {[%clk 00:26:29]}
{[%emt 00:06:14]} Bxd4 {[%clk 00:33:39]} {[%emt 00:00:07]} 27. exd4 {[%clk
00:26:52]} {[%emt 00:00:07]} f4 {[%clk 00:33:59]} {[%emt 00:00:09]} 28. Bb4
{[%clk 00:24:11]} {[%emt 00:03:11]} Rc8 {[%clk 00:33:02]} {[%emt 00:01:27]} 29.
Re1 {[%clk 00:22:14]} {[%emt 00:02:27]} Kg7 {[%clk 00:28:56]} {[%emt 00:04:36]}
30. Rff1 {[%clk 00:20:58]} {[%emt 00:01:46]} Nb8 {[%clk 00:24:23]} {[%emt
00:05:03]} 31. Bc3 {[%clk 00:17:59]} {[%emt 00:03:29]} Nc6 {[%clk 00:22:56]}
{[%emt 00:01:57]} 32. Kg1 {[%clk 00:15:42]} {[%emt 00:02:47]} Ne7 {[%clk
00:22:13]} {[%emt 00:01:13]} 33. Rc1 {[%clk 00:14:26]} {[%emt 00:01:46]} Nf5
{[%clk 00:21:53]} {[%emt 00:00:51]} 34. Bxf5 {[%clk 00:14:18]} {[%emt
00:00:38]} Bxf5 {[%clk 00:22:02]} {[%emt 00:00:21]} 35. Bd2 {[%clk 00:14:31]}
{[%emt 00:00:16]} Rfc7 {[%clk 00:18:00]} {[%emt 00:04:33]} 36. Rxc7+ {[%clk
00:14:42]} {[%emt 00:00:19]} Rxc7 {[%clk 00:18:26]} {[%emt 00:00:03]} 37. Rc1
{[%clk 00:13:58]} {[%emt 00:01:13]} Rxc1+ {[%clk 00:18:52]} {[%emt 00:00:05]}
38. Bxc1 {[%clk 00:14:27]} Bd7 {[%clk 00:17:00]} {[%emt 00:02:23]} 39. Kf2
{[%clk 00:09:48]} {[%emt 00:05:09]} Kg6 {[%clk 00:17:22]} {[%emt 00:00:08]} 40.
h4 {[%clk 00:03:02]} {[%emt 00:07:15]} Kf5 {[%clk 00:15:58]} {[%emt 00:01:54]}
41. hxg5 {[%clk 00:23:35]} {[%emt 00:09:58]} hxg5 {[%clk 00:46:02]} {[%emt
00:00:27]} 42. g3 {[%clk 00:18:52]} {[%emt 00:05:13]} Ke4 {[%clk 00:21:38]}
{[%emt 00:24:53]} 43. gxf4 {[%clk 00:18:16]} {[%emt 00:01:06]} g4 {[%clk
00:19:32]} {[%emt 00:02:36]} 44. Bd2 {[%clk 00:10:57]} {[%emt 00:07:48]} Kxd4
{[%clk 00:19:43]} {[%emt 00:00:20]} 45. Be3+ {[%clk 00:10:46]} {[%emt
00:00:42]} Ke4 {[%clk 00:20:04]} {[%emt 00:00:08]} 46. Bxa7 {[%clk 00:11:04]}
{[%emt 00:00:13]} Kxf4 {[%clk 00:20:29]} {[%emt 00:00:05]} 47. e6 {[%clk
00:08:38]} {[%emt 00:02:55]} Bxe6 {[%clk 00:20:48]} {[%emt 00:00:10]} 48. Bb8+
{[%clk 00:09:05]} {[%emt 00:00:03]} Ke4 {[%clk 00:21:04]} {[%emt 00:00:14]} 49.
Ke2 {[%clk 00:09:15]} {[%emt 00:00:21]} d4 {[%clk 00:21:02]} {[%emt 00:00:32]}
50. Kd2 {[%clk 00:07:43]} {[%emt 00:02:02]} Bc4 {[%clk 00:20:51]} {[%emt
00:00:40]} 51. Bc7 {[%clk 00:06:14]} {[%emt 00:01:59]} Kf3 {[%clk 00:06:34]}
{[%emt 00:14:48]} 52. Bb6 {[%clk 00:04:16]} {[%emt 00:02:29]} Ke4 {[%clk
00:06:47]} {[%emt 00:00:16]} 53. Bc7 {[%clk 00:04:38]} {[%emt 00:00:08]} Kf3
{[%clk 00:07:13]} {[%emt 00:00:04]} 54. Bb6 {[%clk 00:04:49]} {[%emt 00:00:20]}
d3 {[%clk 00:07:38]} {[%emt 00:00:04]} 55. Ke1 {[%clk 00:02:41]} {[%emt
00:02:38]} g3 {[%clk 00:05:30]} {[%emt 00:02:38]} 56. Bc7 {[%clk 00:01:21]}
{[%emt 00:01:50]} Bd5 {[%clk 00:04:10]} {[%emt 00:01:50]} 57. Kd2 {[%clk
00:00:52]} {[%emt 00:01:00]} Be4 {[%clk 00:04:32]} {[%emt 00:00:07]} 58. Bb6
{[%clk 00:00:42]} {[%emt 00:00:40]} Kg2 {[%emt 00:00:51]} 59. a4 {[%clk
00:00:36]} {[%emt 00:00:30]} Bc6 {[%clk 00:01:24]} {[%emt 00:03:23]} 60. b3
{[%clk 00:00:45]} {[%emt 00:00:21]} Bd5 {[%clk 00:01:38]} {[%emt 00:00:17]} 61.
a5 {[%clk 00:00:53]} {[%emt 00:00:22]} Bxb3 {[%clk 00:01:05]} {[%emt 00:01:02]}
62. a6 {[%clk 00:01:20]} {[%emt 00:00:03]} bxa6 {[%clk 00:01:28]} {[%emt
00:00:08]} 63. Kxd3 {[%clk 00:01:47]} {[%emt 00:00:03]} Kf1 {[%clk 00:01:09]}
{[%emt 00:00:48]} 64. Kc3 {[%clk 00:02:13]} {[%emt 00:00:04]} Bd5 {[%clk
00:01:06]} {[%emt 00:00:34]} 65. Kb2 {[%clk 00:02:39]} {[%emt 00:00:03]} g2
{[%clk 00:01:31]} {[%emt 00:00:05]} 1/2-1/2

[Event "Masterklassen 2025"]
[Site "Uppsala, Sweden"]
[Date "2025.07.06"]
[Round "9.3"]
[White "Eriksson, Jorgen"]
[Black "Walinder, Lars"]
[Result "1-0"]
[TimeControl "90 min for 40 move + 30 min with an increment of 30 sec starting move 1"]
[BlackTitle "FM"]
[WhiteFideId "1701967"]
[BlackFideId "1707329"]
[WhiteElo "2160"]
[BlackElo "2181"]

1. d4 {[%clk 01:30:47]} {[%emt 00:00:12]} d5 {[%clk 01:30:49]} {[%emt
00:00:11]} 2. Nf3 {[%clk 01:30:49]} {[%emt 00:00:28]} Nf6 {[%clk 01:30:56]}
{[%emt 00:00:24]} 3. Bf4 {[%clk 01:30:58]} {[%emt 00:00:21]} c5 {[%clk
01:30:40]} {[%emt 00:00:46]} 4. e3 {[%clk 01:30:12]} {[%emt 00:01:16]} Nc6
{[%clk 01:30:45]} {[%emt 00:00:25]} 5. Nbd2 {[%clk 01:29:52]} {[%emt 00:00:50]}
cxd4 {[%clk 01:28:20]} {[%emt 00:02:54]} 6. exd4 {[%clk 01:30:13]} {[%emt
00:00:09]} Qb6 {[%clk 01:26:02]} {[%emt 00:02:49]} 7. Nb3 {[%clk 01:29:04]}
{[%emt 00:01:39]} Bg4 {[%clk 01:19:04]} {[%emt 00:07:28]} 8. Be2 {[%clk
01:23:31]} {[%emt 00:06:04]} e6 {[%clk 01:18:55]} {[%emt 00:00:39]} 9. c3
{[%clk 01:20:33]} {[%emt 00:03:28]} Be7 {[%clk 01:18:55]} {[%emt 00:00:29]} 10.
O-O {[%clk 01:20:01]} {[%emt 00:01:01]} O-O {[%clk 01:19:12]} {[%emt 00:00:14]}
11. Re1 {[%clk 01:14:52]} {[%emt 00:05:39]} Rac8 {[%clk 01:05:52]} {[%emt
00:13:50]} 12. Ne5 {[%clk 00:51:27]} {[%emt 00:23:55]} Nxe5 {[%clk 01:03:17]}
{[%emt 00:03:04]} 13. Bxe5 {[%clk 00:51:35]} {[%emt 00:00:23]} Bxe2 {[%clk
01:03:21]} {[%emt 00:00:26]} 14. Qxe2 {[%clk 00:47:24]} {[%emt 00:04:41]} a6
{[%clk 00:53:04]} {[%emt 00:10:47]} 15. Nc1 {[%clk 00:45:15]} {[%emt 00:02:39]}
Qc6 {[%clk 00:49:55]} {[%emt 00:03:39]} 16. Nd3 {[%clk 00:44:13]} {[%emt
00:01:32]} b5 {[%clk 00:48:20]} {[%emt 00:02:06]} 17. a4 {[%clk 00:31:21]}
{[%emt 00:13:22]} Nd7 {[%clk 00:43:07]} {[%emt 00:05:43]} 18. axb5 {[%clk
00:23:45]} {[%emt 00:08:05]} axb5 {[%clk 00:43:10]} {[%emt 00:00:27]} 19. Ra7
{[%clk 00:19:21]} {[%emt 00:04:55]} Bd6 {[%clk 00:37:50]} {[%emt 00:05:49]} 20.
Bxd6 {[%clk 00:17:51]} {[%emt 00:01:59]} Qxd6 {[%clk 00:37:01]} {[%emt
00:01:20]} 21. Rea1 {[%clk 00:16:36]} {[%emt 00:01:46]} Rb8 {[%clk 00:31:10]}
{[%emt 00:06:21]} 22. h3 {[%clk 00:14:39]} {[%emt 00:02:26]} h6 {[%clk
00:28:21]} {[%emt 00:03:19]} 23. R1a6 {[%clk 00:13:35]} {[%emt 00:01:34]} Nb6
{[%clk 00:27:23]} {[%emt 00:01:28]} 24. Nb4 {[%clk 00:12:02]} {[%emt 00:02:02]}
Ra8 {[%clk 00:13:58]} {[%emt 00:13:56]} 25. Rxa8 {[%clk 00:10:50]} {[%emt
00:01:43]} Rxa8 {[%clk 00:14:16]} {[%emt 00:00:11]} 26. Rxa8+ {[%clk 00:11:14]}
{[%emt 00:00:07]} Nxa8 {[%clk 00:14:38]} {[%emt 00:00:07]} 27. Qxb5 {[%clk
00:11:32]} {[%emt 00:00:12]} Nb6 {[%clk 00:12:37]} {[%emt 00:02:31]} 28. Qe8+
{[%clk 00:10:57]} {[%emt 00:01:05]} Kh7 {[%clk 00:05:53]} {[%emt 00:07:15]} 29.
Qxf7 {[%clk 00:11:14]} {[%emt 00:00:12]} Nc4 {[%clk 00:06:11]} {[%emt
00:00:12]} 30. Nd3 {[%clk 00:11:03]} {[%emt 00:00:41]} Qa6 {[%clk 00:06:09]}
{[%emt 00:00:32]} 31. Nf4 {[%clk 00:05:11]} {[%emt 00:06:22]} Qa1+ {[%clk
00:05:08]} {[%emt 00:01:31]} 32. Kh2 {[%clk 00:05:35]} {[%emt 00:00:06]} Nd2
{[%clk 00:05:21]} {[%emt 00:00:17]} 33. h4 {[%clk 00:03:26]} {[%emt 00:02:39]}
Nf1+ {[%clk 00:04:49]} {[%emt 00:01:02]} 34. Kh3 {[%clk 00:03:50]} {[%emt
00:00:06]} Nd2 {[%clk 00:05:00]} {[%emt 00:00:19]} 35. Kh2 {[%clk 00:02:24]}
{[%emt 00:01:56]} Nf1+ {[%clk 00:05:24]} {[%emt 00:00:06]} 36. Kh3 {[%clk
00:02:51]} {[%emt 00:00:04]} Nd2 {[%clk 00:05:51]} {[%emt 00:00:02]} 37. Nxe6
{[%clk 00:00:37]} {[%emt 00:02:45]} Qh1+ {[%clk 00:06:07]} {[%emt 00:00:13]} 38.
Kg3 {[%clk 00:01:03]} {[%emt 00:00:04]} Ne4+ {[%clk 00:04:31]} {[%emt
00:02:06]} 39. Kf3 {[%clk 00:01:02]} {[%emt 00:00:31]} Qd1+ {[%clk 00:02:07]}
{[%emt 00:02:54]} 40. Kf4 {[%clk 00:00:52]} 1-0